[Event "Titled Tuesday Blitz November 08 Early 2022"]
[White "Goh, Zi Han"]
[Black "Hajiyev, Kanan"]
[WhiteFideId "5819156"]
[BlackFideId "13404148"]
[WhiteElo "2026"]
[BlackElo "2118"]
[Result "0-1"]
[Round "02"]
[TimeControl "180+1"]
[Date "2022.11.09"]
[WhiteClock "0:00:20"]
[BlackClock "0:01:51"]

1. d4 {[%clk 0:03:00]}  d5 {[%clk 0:02:59]} 2. c4 {[%clk 0:02:57]}  c6 {[%clk 0:02:59]} 3. Nc3 {[%clk 0:02:56]}  Nf6 {[%clk 0:02:59]} 4. Nf3 {[%clk 0:02:55]}  g6 {[%clk 0:02:59]} 5. Bg5 {[%clk 0:02:49]}  Ne4 {[%clk 0:02:59]} 6. Bd2 {[%clk 0:02:45]}  Nxd2 {[%clk 0:02:58]} 7. Qxd2 {[%clk 0:02:45]}  Bg7 {[%clk 0:02:56]} 8. e3 {[%clk 0:02:45]}  O-O {[%clk 0:02:55]} 9. Bd3 {[%clk 0:02:37]}  Bg4 {[%clk 0:02:54]} 10. O-O {[%clk 0:02:34]}  Bxf3 {[%clk 0:02:53]} 11. gxf3 {[%clk 0:02:31]}  e5 {[%clk 0:02:41]} 12. cxd5 {[%clk 0:01:48]}  exd4 {[%clk 0:02:39]} 13. exd4 {[%clk 0:01:19]}  cxd5 {[%clk 0:02:30]} 14. Bb5 {[%clk 0:01:16]}  a6 {[%clk 0:02:26]} 15. Ba4 {[%clk 0:01:16]}  Nc6 {[%clk 0:02:07]} 16. Bxc6 {[%clk 0:01:14]}  bxc6 {[%clk 0:02:08]} 17. Rad1 {[%clk 0:00:59]}  Qh4 {[%clk 0:02:06]} 18. Rfe1 {[%clk 0:00:48]}  Bh6 {[%clk 0:02:03]} 19. Qd3 {[%clk 0:00:45]}  Bf4 {[%clk 0:02:02]} 20. Ne2 {[%clk 0:00:20]}  Qxh2+ {[%clk 0:01:55]} 21. Kf1 {[%clk 0:00:20]}  Qh3+ {[%clk 0:01:51]} 0-1


[Site "https://www.chess.com"]

[Event "Titled Tuesday Blitz November 08 Early 2022"]
[White "Goldin, Alexander"]
[Black "Kosakowski, Jakub"]
[WhiteFideId "2019540"]
[BlackFideId "1185080"]
[WhiteElo "2599"]
[BlackElo "2463"]
[Result "1-0"]
[Round "02"]
[TimeControl "180+1"]
[Date "2022.11.09"]
[WhiteClock "0:00:30"]
[BlackClock "0:00:11"]

1. Nf3 {[%clk 0:02:55]}  Nf6 {[%clk 0:02:59]} 2. g3 {[%clk 0:02:55]}  b6 {[%clk 0:02:58]} 3. Bg2 {[%clk 0:02:55]}  Bb7 {[%clk 0:02:59]} 4. O-O {[%clk 0:02:55]}  d5 {[%clk 0:02:58]} 5. d4 {[%clk 0:02:52]}  e6 {[%clk 0:02:49]} 6. c4 {[%clk 0:02:49]}  Be7 {[%clk 0:02:39]} 7. Nc3 {[%clk 0:02:48]}  O-O {[%clk 0:02:39]} 8. cxd5 {[%clk 0:02:48]}  exd5 {[%clk 0:02:39]} 9. Bf4 {[%clk 0:02:48]}  a6 {[%clk 0:02:30]} 10. Rc1 {[%clk 0:02:47]}  c5 {[%clk 0:02:30]} 11. Ne5 {[%clk 0:02:41]}  Nc6 {[%clk 0:02:29]} 12. dxc5 {[%clk 0:02:34]}  Nxe5 {[%clk 0:01:50]} 13. Bxe5 {[%clk 0:02:31]}  Bxc5 {[%clk 0:01:50]} 14. Bxf6 {[%clk 0:02:22]}  Qxf6 {[%clk 0:01:49]} 15. Bxd5 {[%clk 0:01:56]}  Rad8 {[%clk 0:01:46]} 16. e4 {[%clk 0:01:51]}  Bxd5 {[%clk 0:01:40]} 17. exd5 {[%clk 0:01:45]}  Rfe8 {[%clk 0:01:40]} 18. Qd3 {[%clk 0:01:43]}  h5 {[%clk 0:01:30]} 19. Rcd1 {[%clk 0:01:40]}  h4 {[%clk 0:01:25]} 20. a3 {[%clk 0:01:38]}  Qh6 {[%clk 0:01:14]} 21. b4 {[%clk 0:01:30]}  Bf8 {[%clk 0:01:11]} 22. Qxa6 {[%clk 0:01:25]}  hxg3 {[%clk 0:01:10]} 23. hxg3 {[%clk 0:01:24]}  Qh3 {[%clk 0:01:10]} 24. Qd3 {[%clk 0:01:22]}  Rd6 {[%clk 0:00:55]} 25. Qf3 {[%clk 0:01:22]}  Rh6 {[%clk 0:00:53]} 26. Qg2 {[%clk 0:01:22]}  Qc8 {[%clk 0:00:53]} 27. Ne4 {[%clk 0:01:06]}  Qc2 {[%clk 0:00:50]} 28. Rfe1 {[%clk 0:01:03]}  Rd8 {[%clk 0:00:49]} 29. Qf3 {[%clk 0:00:59]}  b5 {[%clk 0:00:49]} 30. Kg2 {[%clk 0:00:59]}  Qa2 {[%clk 0:00:48]} 31. Ng5 {[%clk 0:00:57]}  Rf6 {[%clk 0:00:46]} 32. Qe2 {[%clk 0:00:50]}  Qxa3 {[%clk 0:00:43]} 33. Qh5 {[%clk 0:00:49]}  Rh6 {[%clk 0:00:32]} 34. Qxf7+ {[%clk 0:00:49]}  Kh8 {[%clk 0:00:33]} 35. Re8 {[%clk 0:00:48]}  Rxe8 {[%clk 0:00:24]} 36. Qxe8 {[%clk 0:00:48]}  Qxb4 {[%clk 0:00:24]} 37. d6 {[%clk 0:00:46]}  Rf6 {[%clk 0:00:21]} 38. d7 {[%clk 0:00:40]}  Qc5 {[%clk 0:00:15]} 39. Qh5+ {[%clk 0:00:33]}  Rh6 {[%clk 0:00:13]} 40. Qxh6+ {[%clk 0:00:32]}  gxh6 {[%clk 0:00:12]} 41. d8=Q {[%clk 0:00:33]}  hxg5 {[%clk 0:00:11]} 42. Qf6+ {[%clk 0:00:31]}  Kg8 {[%clk 0:00:11]} 43. Qg6+ {[%clk 0:00:30]} 1-0


[Site "https://www.chess.com"]

[Event "Titled Tuesday Blitz November 08 Early 2022"]
[White "Goldin, Roman"]
[Black "Jumabayev, Rinat"]
[WhiteFideId "2803860"]
[BlackFideId "13702661"]
[WhiteElo "2312"]
[BlackElo "2561"]
[Result "0-1"]
[Round "02"]
[TimeControl "180+1"]
[Date "2022.11.09"]
[WhiteClock "0:00:35"]
[BlackClock "0:02:11"]

1. e4 {[%clk 0:02:51]}  e6 {[%clk 0:03:00]} 2. d4 {[%clk 0:02:50]}  d5 {[%clk 0:03:01]} 3. Nd2 {[%clk 0:02:50]}  c5 {[%clk 0:03:00]} 4. Ngf3 {[%clk 0:02:47]}  cxd4 {[%clk 0:03:00]} 5. exd5 {[%clk 0:02:46]}  Qxd5 {[%clk 0:03:00]} 6. Bc4 {[%clk 0:02:46]}  Qd6 {[%clk 0:03:00]} 7. O-O {[%clk 0:02:46]}  Nf6 {[%clk 0:03:00]} 8. Nb3 {[%clk 0:02:47]}  Nc6 {[%clk 0:02:59]} 9. Nbxd4 {[%clk 0:02:47]}  Nxd4 {[%clk 0:02:59]} 10. Nxd4 {[%clk 0:02:47]}  a6 {[%clk 0:03:00]} 11. c3 {[%clk 0:02:47]}  Qc7 {[%clk 0:02:59]} 12. Bb3 {[%clk 0:02:47]}  Bd6 {[%clk 0:03:00]} 13. h3 {[%clk 0:02:41]}  Bd7 {[%clk 0:02:50]} 14. Bg5 {[%clk 0:02:38]}  O-O-O {[%clk 0:02:46]} 15. Qf3 {[%clk 0:02:32]}  Bh2+ {[%clk 0:02:46]} 16. Kh1 {[%clk 0:02:31]}  Be5 {[%clk 0:02:46]} 17. Rad1 {[%clk 0:02:26]}  h6 {[%clk 0:02:46]} 18. Bh4 {[%clk 0:02:23]}  Kb8 {[%clk 0:02:36]} 19. Rfe1 {[%clk 0:02:17]}  Ka8 {[%clk 0:02:37]} 20. Bg3 {[%clk 0:01:45]}  Bxg3 {[%clk 0:02:28]} 21. fxg3 {[%clk 0:01:44]}  Bc8 {[%clk 0:02:27]} 22. g4 {[%clk 0:01:41]}  h5 {[%clk 0:02:13]} 23. g5 {[%clk 0:01:41]}  Ng4 {[%clk 0:02:14]} 24. g3 {[%clk 0:01:36]}  e5 {[%clk 0:02:13]} 25. Kg1 {[%clk 0:00:46]}  exd4 {[%clk 0:02:10]} 26. hxg4 {[%clk 0:00:44]}  Bxg4 {[%clk 0:02:10]} 27. Qxf7 {[%clk 0:00:34]}  Qxf7 {[%clk 0:02:09]} 28. Bxf7 {[%clk 0:00:34]}  Bxd1 {[%clk 0:02:09]} 29. Rxd1 {[%clk 0:00:34]}  dxc3 {[%clk 0:02:10]} 30. Rxd8+ {[%clk 0:00:34]}  Rxd8 {[%clk 0:02:11]} 31. bxc3 {[%clk 0:00:35]}  Rd3 {[%clk 0:02:11]} 0-1


[Site "https://www.chess.com"]

[Event "Titled Tuesday Blitz November 08 Early 2022"]
[White "Goltseva, Ekaterina"]
[Black "Samunenkov, Ihor"]
[WhiteFideId "24173770"]
[BlackFideId "14187086"]
[WhiteElo "2200"]
[BlackElo "2441"]
[Result "0-1"]
[Round "02"]
[TimeControl "180+1"]
[Date "2022.11.09"]
[WhiteClock "0:00:03"]
[BlackClock "0:00:07"]

1. d4 {[%clk 0:02:55]}  d5 {[%clk 0:02:56]} 2. c4 {[%clk 0:02:53]}  e6 {[%clk 0:02:56]} 3. Nf3 {[%clk 0:02:51]}  a6 {[%clk 0:02:54]} 4. g3 {[%clk 0:02:47]}  dxc4 {[%clk 0:02:53]} 5. Bg2 {[%clk 0:02:46]}  b5 {[%clk 0:02:53]} 6. Ne5 {[%clk 0:02:38]}  c6 {[%clk 0:02:54]} 7. O-O {[%clk 0:02:31]}  Bb7 {[%clk 0:02:47]} 8. a4 {[%clk 0:02:30]}  Nf6 {[%clk 0:02:46]} 9. b3 {[%clk 0:02:28]}  cxb3 {[%clk 0:02:41]} 10. Qxb3 {[%clk 0:02:28]}  Qxd4 {[%clk 0:02:40]} 11. Bb2 {[%clk 0:02:28]}  Qb4 {[%clk 0:02:41]} 12. Qc2 {[%clk 0:02:27]}  Qc5 {[%clk 0:02:41]} 13. Qd3 {[%clk 0:02:17]}  Be7 {[%clk 0:02:02]} 14. Nd2 {[%clk 0:01:59]}  O-O {[%clk 0:01:57]} 15. Rfc1 {[%clk 0:01:52]}  Qd6 {[%clk 0:01:57]} 16. Qxd6 {[%clk 0:01:36]}  Bxd6 {[%clk 0:01:57]} 17. Nxc6 {[%clk 0:01:37]}  Nxc6 {[%clk 0:01:56]} 18. Bxc6 {[%clk 0:01:37]}  Bxc6 {[%clk 0:01:57]} 19. Rxc6 {[%clk 0:01:37]}  Bb4 {[%clk 0:01:46]} 20. Nf3 {[%clk 0:01:27]}  bxa4 {[%clk 0:01:33]} 21. Rxa4 {[%clk 0:01:24]}  a5 {[%clk 0:01:33]} 22. Bxf6 {[%clk 0:00:55]}  gxf6 {[%clk 0:01:33]} 23. Nd4 {[%clk 0:00:52]}  Rfd8 {[%clk 0:01:30]} 24. Rc4 {[%clk 0:00:50]}  Rdc8 {[%clk 0:00:55]} 25. Rxc8+ {[%clk 0:00:40]}  Rxc8 {[%clk 0:00:56]} 26. Ra2 {[%clk 0:00:41]}  Kf8 {[%clk 0:00:41]} 27. Nb3 {[%clk 0:00:34]}  Ra8 {[%clk 0:00:40]} 28. Ra4 {[%clk 0:00:31]}  Ke7 {[%clk 0:00:40]} 29. Nc1 {[%clk 0:00:28]}  Kd6 {[%clk 0:00:37]} 30. Nd3 {[%clk 0:00:29]}  Rb8 {[%clk 0:00:37]} 31. Kg2 {[%clk 0:00:21]}  Kc6 {[%clk 0:00:36]} 32. Ra2 {[%clk 0:00:18]}  Kb5 {[%clk 0:00:35]} 33. Kf3 {[%clk 0:00:19]}  Bc3 {[%clk 0:00:29]} 34. Ra3 {[%clk 0:00:11]}  Rc8 {[%clk 0:00:23]} 35. Ke3 {[%clk 0:00:04]}  a4 {[%clk 0:00:22]} 36. f4 {[%clk 0:00:03]}  Bb4 {[%clk 0:00:15]} 37. Ra2 {[%clk 0:00:03]}  a3 {[%clk 0:00:15]} 38. Kf2 {[%clk 0:00:02]}  Ka4 {[%clk 0:00:14]} 39. Ra1 {[%clk 0:00:02]}  Rc2 {[%clk 0:00:11]} 40. Rb1 {[%clk 0:00:01]}  Ba5 {[%clk 0:00:06]} 41. Nc5+ {[%clk 0:00:02]}  Rxc5 {[%clk 0:00:06]} 42. Ke3 {[%clk 0:00:02]}  a2 {[%clk 0:00:06]} 43. Ra1 {[%clk 0:00:02]}  Kb3 {[%clk 0:00:07]} 44. Kd4 {[%clk 0:00:03]}  Bc3+ {[%clk 0:00:06]} 45. Kxc5 {[%clk 0:00:03]}  Bxa1 {[%clk 0:00:07]} 0-1


[Site "https://www.chess.com"]

[Event "Titled Tuesday Blitz November 08 Early 2022"]
[White "Goryachkina, Aleksandra"]
[Black "Paravyan, David"]
[WhiteFideId "4147103"]
[BlackFideId "4194985"]
[WhiteElo "2484"]
[BlackElo "2546"]
[Result "0-1"]
[Round "02"]
[TimeControl "180+1"]
[Date "2022.11.08"]
[WhiteClock "0:00:01"]
[BlackClock "0:00:04"]

1. e4 {[%clk 0:02:59]}  e5 {[%clk 0:02:41]} 2. Nf3 {[%clk 0:02:59]}  Nf6 {[%clk 0:02:41]} 3. Nxe5 {[%clk 0:02:57]}  d6 {[%clk 0:02:41]} 4. Nf3 {[%clk 0:02:57]}  Nxe4 {[%clk 0:02:41]} 5. Nc3 {[%clk 0:02:53]}  Nxc3 {[%clk 0:02:42]} 6. dxc3 {[%clk 0:02:54]}  Be7 {[%clk 0:02:42]} 7. Be3 {[%clk 0:02:53]}  O-O {[%clk 0:02:43]} 8. Qd2 {[%clk 0:02:53]}  Nd7 {[%clk 0:02:43]} 9. O-O-O {[%clk 0:02:52]}  c6 {[%clk 0:02:43]} 10. h4 {[%clk 0:02:43]}  d5 {[%clk 0:02:40]} 11. h5 {[%clk 0:02:39]}  h6 {[%clk 0:02:35]} 12. Kb1 {[%clk 0:02:11]}  Bc5 {[%clk 0:02:34]} 13. Bxc5 {[%clk 0:01:34]}  Nxc5 {[%clk 0:02:35]} 14. Nd4 {[%clk 0:01:32]}  Ne4 {[%clk 0:02:33]} 15. Qe1 {[%clk 0:01:22]}  c5 {[%clk 0:02:21]} 16. Nb3 {[%clk 0:01:20]}  Qb6 {[%clk 0:01:40]} 17. f3 {[%clk 0:01:16]}  Nf6 {[%clk 0:01:38]} 18. g4 {[%clk 0:01:09]}  Be6 {[%clk 0:01:05]} 19. g5 {[%clk 0:00:51]}  hxg5 {[%clk 0:01:03]} 20. h6 {[%clk 0:00:51]}  g6 {[%clk 0:00:39]} 21. Qe5 {[%clk 0:00:48]}  Bf5 {[%clk 0:00:38]} 22. Nxc5 {[%clk 0:00:39]}  Rfe8 {[%clk 0:00:30]} 23. Qd4 {[%clk 0:00:34]}  Rac8 {[%clk 0:00:30]} 24. b4 {[%clk 0:00:23]}  Rxc5 {[%clk 0:00:28]} 25. Qxc5 {[%clk 0:00:20]}  Qxc5 {[%clk 0:00:28]} 26. bxc5 {[%clk 0:00:20]}  Rc8 {[%clk 0:00:29]} 27. Bd3 {[%clk 0:00:17]}  Bxd3 {[%clk 0:00:28]} 28. cxd3 {[%clk 0:00:14]}  Rxc5 {[%clk 0:00:29]} 29. Kb2 {[%clk 0:00:14]}  Kh7 {[%clk 0:00:26]} 30. Rde1 {[%clk 0:00:12]}  d4 {[%clk 0:00:25]} 31. cxd4 {[%clk 0:00:11]}  Rf5 {[%clk 0:00:25]} 32. Re7 {[%clk 0:00:09]}  Nh5 {[%clk 0:00:15]} 33. Rxb7 {[%clk 0:00:07]}  Rxf3 {[%clk 0:00:15]} 34. Kc2 {[%clk 0:00:04]}  g4 {[%clk 0:00:16]} 35. d5 {[%clk 0:00:03]}  Ng3 {[%clk 0:00:09]} 36. Rg1 {[%clk 0:00:03]}  Nf5 {[%clk 0:00:04]} 37. Rxf7+ {[%clk 0:00:02]}  Kxh6 {[%clk 0:00:05]} 38. Kb3 {[%clk 0:00:03]}  Rxd3+ {[%clk 0:00:05]} 39. Kc4 {[%clk 0:00:03]}  Rd2 {[%clk 0:00:05]} 40. Rxa7 {[%clk 0:00:02]}  Ne3+ {[%clk 0:00:05]} 41. Kc3 {[%clk 0:00:02]}  Rxd5 {[%clk 0:00:06]} 42. Re1 {[%clk 0:00:02]}  Nf5 {[%clk 0:00:05]} 43. a4 {[%clk 0:00:01]}  g3 {[%clk 0:00:05]} 44. a5 {[%clk 0:00:01]}  g2 {[%clk 0:00:06]} 45. Rg1 {[%clk 0:00:02]}  Ne3 {[%clk 0:00:06]} 46. a6 {[%clk 0:00:01]}  Rd1 {[%clk 0:00:06]} 47. Rxg2 {[%clk 0:00:01]}  Nxg2 {[%clk 0:00:07]} 48. Rb7 {[%clk 0:00:01]}  Ra1 {[%clk 0:00:07]} 49. a7 {[%clk 0:00:02]}  Nf4 {[%clk 0:00:06]} 50. Kc4 {[%clk 0:00:02]}  g5 {[%clk 0:00:05]} 51. Kb5 {[%clk 0:00:02]}  Kh5 {[%clk 0:00:04]} 52. Kb6 {[%clk 0:00:02]}  Nd5+ {[%clk 0:00:05]} 53. Kc6 {[%clk 0:00:03]}  Ra5 {[%clk 0:00:04]} 54. Rd7 {[%clk 0:00:02]}  Kh4 {[%clk 0:00:04]} 55. Rh7+ {[%clk 0:00:01]}  Kg3 {[%clk 0:00:04]} 56. Rg7 {[%clk 0:00:01]}  g4 {[%clk 0:00:04]} 0-1


[Site "https://www.chess.com"]

[Event "Titled Tuesday Blitz November 08 Early 2022"]
[White "Grandelius, Nils"]
[Black "Taboas Rodriguez, Daniel"]
[WhiteFideId "1710400"]
[BlackFideId "2208466"]
[WhiteElo "2617"]
[BlackElo "2329"]
[Result "1-0"]
[Round "02"]
[TimeControl "180+1"]
[Date "2022.11.08"]
[WhiteClock "0:00:12"]
[BlackClock "0:00:20"]

1. Nf3 {[%clk 0:03:00]}  Nf6 {[%clk 0:03:00]} 2. g3 {[%clk 0:03:00]}  b6 {[%clk 0:03:00]} 3. Bg2 {[%clk 0:03:01]}  Bb7 {[%clk 0:03:01]} 4. O-O {[%clk 0:03:01]}  g6 {[%clk 0:03:01]} 5. d3 {[%clk 0:03:00]}  Bg7 {[%clk 0:03:01]} 6. e4 {[%clk 0:03:00]}  O-O {[%clk 0:03:02]} 7. e5 {[%clk 0:02:56]}  Nd5 {[%clk 0:02:57]} 8. c4 {[%clk 0:02:52]}  Nb4 {[%clk 0:02:58]} 9. a3 {[%clk 0:02:38]}  N4c6 {[%clk 0:02:57]} 10. d4 {[%clk 0:02:38]}  d6 {[%clk 0:02:57]} 11. e6 {[%clk 0:02:37]}  f6 {[%clk 0:02:15]} 12. Nc3 {[%clk 0:02:30]}  a5 {[%clk 0:02:15]} 13. d5 {[%clk 0:02:23]}  Ne5 {[%clk 0:02:15]} 14. Nd4 {[%clk 0:01:57]}  f5 {[%clk 0:01:56]} 15. b3 {[%clk 0:01:44]}  Na6 {[%clk 0:01:55]} 16. Re1 {[%clk 0:01:19]}  Nc5 {[%clk 0:01:55]} 17. Bf1 {[%clk 0:01:20]}  a4 {[%clk 0:01:29]} 18. b4 {[%clk 0:01:16]}  Nb3 {[%clk 0:01:28]} 19. Nxb3 {[%clk 0:01:10]}  axb3 {[%clk 0:01:29]} 20. Bb2 {[%clk 0:00:59]}  c6 {[%clk 0:01:23]} 21. Be2 {[%clk 0:00:47]}  cxd5 {[%clk 0:01:23]} 22. cxd5 {[%clk 0:00:43]}  Rc8 {[%clk 0:01:21]} 23. Qxb3 {[%clk 0:00:42]}  f4 {[%clk 0:01:19]} 24. Ne4 {[%clk 0:00:38]}  h6 {[%clk 0:00:50]} 25. Rad1 {[%clk 0:00:38]}  Rc7 {[%clk 0:00:49]} 26. Bd4 {[%clk 0:00:37]}  Rc8 {[%clk 0:00:42]} 27. a4 {[%clk 0:00:36]}  Rf5 {[%clk 0:00:34]} 28. Bxe5 {[%clk 0:00:21]}  Rxe5 {[%clk 0:00:31]} 29. Bf3 {[%clk 0:00:20]}  Qc7 {[%clk 0:00:27]} 30. Kg2 {[%clk 0:00:19]}  fxg3 {[%clk 0:00:27]} 31. hxg3 {[%clk 0:00:18]}  Rf8 {[%clk 0:00:27]} 32. Re3 {[%clk 0:00:16]}  Qb8 {[%clk 0:00:27]} 33. Nd2 {[%clk 0:00:13]}  Ref5 {[%clk 0:00:26]} 34. Rf1 {[%clk 0:00:13]}  Qa8 {[%clk 0:00:26]} 35. Qd3 {[%clk 0:00:13]}  g5 {[%clk 0:00:25]} 36. Be4 {[%clk 0:00:12]}  R5f6 {[%clk 0:00:24]} 37. Nc4 {[%clk 0:00:11]}  Qxa4 {[%clk 0:00:24]} 38. Nxb6 {[%clk 0:00:12]}  Qxb4 {[%clk 0:00:24]} 39. Nd7 {[%clk 0:00:13]}  Qa4 {[%clk 0:00:21]} 40. Nxf8 {[%clk 0:00:12]}  Bxf8 {[%clk 0:00:20]} 41. Rb1 {[%clk 0:00:12]}  Ba6 {[%clk 0:00:20]} 42. Qb3 {[%clk 0:00:12]}  Qa5 {[%clk 0:00:20]} 43. Rf3 {[%clk 0:00:12]}  Rxf3 {[%clk 0:00:20]} 44. Qxf3 {[%clk 0:00:12]} 1-0


[Site "https://www.chess.com"]

[Event "Titled Tuesday Blitz November 08 Early 2022"]
[White "Gritsenko, Nikolai"]
[Black "Nakamura, Hikaru"]
[WhiteFideId "14112493"]
[BlackFideId "2016192"]
[WhiteElo "2389"]
[BlackElo "2909"]
[Result "0-1"]
[Round "02"]
[TimeControl "180+1"]
[Date "2022.11.08"]
[WhiteClock "0:00:19"]
[BlackClock "0:01:43"]

1. e4 {[%clk 0:03:00]}  g6 {[%clk 0:02:59]} 2. d4 {[%clk 0:02:58]}  Bg7 {[%clk 0:02:58]} 3. Nc3 {[%clk 0:02:59]}  a6 {[%clk 0:02:52]} 4. f4 {[%clk 0:02:57]}  c6 {[%clk 0:02:52]} 5. a4 {[%clk 0:02:55]}  d5 {[%clk 0:02:52]} 6. e5 {[%clk 0:02:54]}  h5 {[%clk 0:02:52]} 7. Nf3 {[%clk 0:02:50]}  Bg4 {[%clk 0:02:52]} 8. h3 {[%clk 0:02:44]}  Bxf3 {[%clk 0:02:52]} 9. Qxf3 {[%clk 0:02:44]}  e6 {[%clk 0:02:53]} 10. g3 {[%clk 0:02:42]}  Nd7 {[%clk 0:02:49]} 11. Bd3 {[%clk 0:02:38]}  c5 {[%clk 0:02:49]} 12. Be3 {[%clk 0:02:31]}  Rc8 {[%clk 0:02:49]} 13. a5 {[%clk 0:01:53]}  cxd4 {[%clk 0:02:36]} 14. Bxd4 {[%clk 0:01:52]}  Ne7 {[%clk 0:02:36]} 15. Ne2 {[%clk 0:01:35]}  Nc6 {[%clk 0:02:36]} 16. Bc3 {[%clk 0:01:35]}  h4 {[%clk 0:02:36]} 17. g4 {[%clk 0:01:34]}  g5 {[%clk 0:02:36]} 18. O-O-O {[%clk 0:01:19]}  gxf4 {[%clk 0:02:35]} 19. Nxf4 {[%clk 0:01:11]}  Ncxe5 {[%clk 0:02:36]} 20. Nxe6 {[%clk 0:00:57]}  fxe6 {[%clk 0:02:10]} 21. Bg6+ {[%clk 0:00:34]}  Nxg6 {[%clk 0:02:10]} 22. Bxg7 {[%clk 0:00:32]}  Qg5+ {[%clk 0:02:10]} 23. Kb1 {[%clk 0:00:30]}  Nge5 {[%clk 0:02:10]} 24. Bxe5 {[%clk 0:00:29]}  Nxe5 {[%clk 0:02:11]} 25. Qb3 {[%clk 0:00:26]}  O-O {[%clk 0:02:04]} 26. Rhe1 {[%clk 0:00:25]}  Nc4 {[%clk 0:01:50]} 27. Rxe6 {[%clk 0:00:23]}  Nd2+ {[%clk 0:01:43]} 28. Rxd2 {[%clk 0:00:23]}  Qxd2 {[%clk 0:01:44]} 29. Qb6 {[%clk 0:00:19]}  Qxc2+ {[%clk 0:01:43]} 0-1


[Site "https://www.chess.com"]